Cogmind - Beta 16 @@@ ROGUE MODE // 2025.10.31 @ 09:11:50 Player: Demo Result: Destroyed by S-43 Plague with Heavy Machine Gun Performance ------------- Evolutions (8) 4000 Regions Visited (20) 4000 Robots Destroyed (226) 1130 Value Destroyed (14874) 14874 Prototype IDs (129) 2580 Alien Tech Used (4) 800 Bonus (12216) 12216 TOTAL SCORE: 39600 Bonus ------- High Alert Combat Kills 2832 Follower Combat Kills 2282 Entered DSFs 500 Met Warlord at Base 500 MAIN.C Attacked Warlord 500 Warlord Defense Kills 414 Built Enhanced Grunts 300 Met R17 at Cetus 500 Met R17 at Research 2000 Scanned by Researcher 500 Acquired SGEMP 2000 Friendly Fire -112 Cogmind --------- Core Integrity 0/1450 Matter 50/300 Energy 80/100 System Corruption 14% Temperature Cool (0) Movement Core (50) Location -2/Protoforge Parts ------- > --- POWER (1) -------- (None) > --- PROPULSION (6) --- Heavy Armored Exoskeleton Enhanced Biometal Leg High-density Centrium Leg > --- UTILITY (11) ----- Plexus Tether Experimental Optical Array Improved Melee Analysis Suite Advanced Melee Analysis Suite Experimental Target Analyzer Experimental Core Analyzer Improved Armor Integrity Analyzer > --- WEAPON (5) ------- Experimental Terror Saw > --- INVENTORY (5) ---- Z-bomb Delivery System Core Stripper Peak State ------------ > --- POWER ------------ Improved Quantum Reactor > --- PROPULSION ------- Heavy Armored Exoskeleton Enhanced Biometal Leg High-density Centrium Leg > --- UTILITY ---------- High-capacity Storage Unit Advanced Matter Compressor Experimental Optical Array Advanced Melee Analysis Suite Experimental Target Analyzer Experimental Core Analyzer Experimental Core Analyzer Improved Armor Integrity Analyzer Advanced Phase Shifter Heavy Insulated Plating > --- WEAPON ----------- Nanosword Sigix Broadsword Sigix Broadsword > --- INVENTORY -------- Light Quantum Reactor Biometal Leg Heavy Armored Exoskeleton Centrium Leg Improved Matter Compressor Experimental Signal Interpreter Improved Melee Analysis Suite Stasis Canceller Advanced Shield Generator Improved Dynamic Insulation System Z-bomb Delivery System Core Stripper Nanosword Nanosword SGEMP Prototype [Rating: 220] Favorites ----------- Power Quantum Reactor Engine Improved Ion Engine Power Core Reinforced Fission Core Reactor Quantum Reactor Propulsion Myomer Leg Treads Centrium Heavy Treads Leg Myomer Leg Wheel Centrium Wheel Hover Unit Antigrav System Flight Unit Improved Cesium-ion Thruster Utility Advanced Melee Analysis Suite Device Advanced Shield Generator Storage High-capacity Storage Unit Processor Advanced Melee Analysis Suite Hackware Ghost Barrier Protection Centrium Medium Armor Plating Artifact Phase Armor Weapon Nanosword Energy Gun Warp Gun Ballistic Gun KE Penetrator Ballistic Cannon Bore Cannon Launcher Z-bomb Delivery System Impact Weapon Core Stripper Slashing Weapon Nanosword Piercing Weapon Heavy Pick Special Melee Weapon Datajack Build | -11 -10 -9 -8 -7 -6 -6 -5 -5 -5 -5 -4 -4 -4 -4 -3 -3 -3 -2 -2 -2 ------- Run | Yrd Mat Mat Mat Fac Fac DSF Fac Ext Cet Arc Fac Upp Upp War Pro Res Tes Res Qua Frg Slots Evolved 16 | . . 2 2 2 2 . 2 . . . 2 . . . . 2 . 2 . . Power . | . . . . . . . . . . . . . . . . . . . . . Propulsion 4 | . . 2 . . . . 2 . . . . . . . . . . . . . Utility 9 | . . . 2 2 2 . . . . . . . . . . 2 . 1 . . Weapon 3 | . . . . . . . . . . . 2 . . . . . . 1 . . Parts Attached 276 | 2 5 5 1 10 5 2 2 45 14 4 12 . 8 8 . 36 48 40 21 8 Power 25 | . . . . . 1 1 . 4 2 . . . 1 . . 4 6 2 2 2 Engine 2 | . . . . . 1 . . 1 . . . . . . . . . . . . Core 5 | . . . . . . 1 . 3 . . . . . . . . 1 . . . Reactor 18 | . . . . . . . . . 2 . . . 1 . . 4 5 2 2 2 Propulsion 99 | 2 2 4 . 4 . . 1 20 6 3 7 . . 3 . 9 17 16 4 1 Treads 8 | 2 . . . . . . . 2 2 2 . . . . . . . . . . Leg 79 | . . 4 . . . . . 15 4 1 5 . . 3 . 9 17 16 4 1 Wheel 1 | . . . . . . . . . . . 1 . . . . . . . . . Hover 4 | . . . . . . . . 3 . . 1 . . . . . . . . . Flight 7 | . 2 . . 4 . . 1 . . . . . . . . . . . . . Utility 122 | . 1 1 1 4 2 1 1 18 6 1 4 . 4 4 . 18 19 21 12 4 Device 42 | . 1 . . . . . . 3 2 . . . . 2 . 8 9 9 6 2 Storage 8 | . . . . 1 . . . 1 1 . . . . . . 3 1 . 1 . Processor 28 | . . . 1 1 . 1 . 4 . . 2 . 1 1 . 4 2 7 2 2 Hackware 1 | . . . . . . . . . . . . . . . . . 1 . . . Protection 42 | . . 1 . 2 2 . 1 10 3 1 2 . 3 1 . 3 6 5 2 . Artifact 1 | . . . . . . . . . . . . . . . . . . . 1 . Weapon 30 | . 2 . . 2 2 . . 3 . . 1 . 3 1 . 5 6 1 3 1 Energy Gun 1 | . . . . . . . . . . . . . . . . . 1 . . . Energy Cannon . | . . . . . . . . . . . . . . . . . . . . . Ballistic Gun 1 | . . . . . . . . . . . 1 . . . . . . . . . Ballistic Cannon 4 | . . . . . . . . . . . . . 3 . . . 1 . . . Launcher 2 | . . . . . . . . . . . . . . . . . 2 . . . Special Weapon . | . . . . . . . . . . . . . . . . . . . . . Impact Weapon 3 | . 1 . . . . . . . . . . . . . . 1 . . 1 . Slashing Weapon 13 | . . . . . . . . 3 . . . . . 1 . 4 1 1 2 1 Piercing Weapon 5 | . . . . 2 2 . . . . . . . . . . . 1 . . . Special Melee Weapon 1 | . 1 . . . . . . . . . . . . . . . . . . . Unidentified Prototypes 42 | . . . . 1 . . . . 5 . . . . . . 8 16 6 6 . Corrupted Parts 2 | . . . . . . . . 2 . . . . . . . . . . . . System Corruption 8 | . . . . . . . . 8 . . . . . . . . . . . . Parts Lost 95 | . 1 . . . . . . 23 12 1 5 . . 1 . 4 19 12 8 9 Power 11 | . . . . . . . . 3 . . 1 . . . . . 2 1 2 2 Propulsion 29 | . . . . . . . . 11 8 . . . . . . . 6 3 1 . Utility 45 | . . . . . . . . 8 3 1 2 . . 1 . 3 11 7 5 4 Weapon 10 | . 1 . . . . . . 1 1 . 2 . . . . 1 . 1 . 3 Highest Loss Streak 13 | . 1 . . . . . . 10 8 1 5 . . 1 . 2 13 3 4 8 To Critical Strikes 4 | . . . . . . . . 1 1 . . . . . . . . . 1 1 Average Backups 11 | . . 3 5 5 8 8 7 8 9 9 9 5 4 5 5 13 17 17 14 11 Power 1 | . . . . . . 1 2 1 1 1 1 1 . . . 2 2 1 1 1 Propulsion 2 | . . . . . 1 1 . . 3 1 2 1 1 1 1 3 4 5 3 3 Utility 4 | . . 3 4 4 3 3 2 2 2 6 5 2 2 3 2 4 6 5 6 3 Weapon 2 | . . . 1 . 2 3 3 4 1 1 . . 1 1 1 2 4 3 2 3 Tool/Special . | . . . . . . . . . . . . . . . . . . . . . Unused Backups 54 | . . . . . . . . 4 5 2 3 . . . 1 9 5 5 12 8 Power 12 | . . . . . . . . 3 1 . . . . . . 4 2 1 . 1 Propulsion 17 | . . . . . . . . . 2 . . . . . . . . 2 9 4 Utility 22 | . . . . . . . . . 1 2 3 . . . 1 5 3 1 3 3 Weapon 2 | . . . . . . . . 1 1 . . . . . . . . . . . Tool/Special 1 | . . . . . . . . . . . . . . . . . . 1 . . Average Slot Usage (%) 87 | . 45 52 50 78 89 95 93 92 85 83 79 52 62 92 94 97 95 92 80 80 Reactor 3 | . . . . . . . . . 4 5 4 . 1 5 5 3 3 3 4 3 Treads 1 | . 9 . . . . . . 2 6 16 10 5 5 4 . . . . . . Leg 17 | . . 35 36 10 . . . 12 13 5 9 15 15 17 31 28 27 21 13 13 Flight 2 | . 18 2 . 18 26 26 29 10 . . . . . . . . . . . . Device 3 | . 3 2 . . . . . 1 3 . 2 . . 2 . 6 5 3 7 4 Storage 3 | . . . . 6 6 6 5 5 6 11 6 . . . . 3 4 4 4 3 Processor 23 | . . . 5 14 13 18 17 25 27 18 15 21 23 26 26 25 15 22 28 37 Protection 9 | . . 8 9 19 28 24 22 11 7 10 9 . 3 11 10 8 16 10 2 . Ballistic Cannon 1 | . . . . . . . . . . . . . 2 13 10 3 . . . . Slashing Weapon 10 | . . . . . . . . 5 . . . . . 1 5 12 18 20 16 16 Piercing Weapon 2 | . . . . 2 9 13 11 5 10 11 12 5 5 5 5 1 . . . . Peak Build Rating 220 | 2 5 17 19 46 59 65 71 79 113 113 118 70 108 112 107 163 188 209 220 215 Average Rating 138 | 1 3 14 17 37 53 62 70 70 91 107 106 69 79 109 106 135 172 191 208 205 On Entrance 84 | . 2 4 16 19 45 59 62 71 72 113 105 70 69 108 106 107 161 175 206 200 Avg Prop Armor Cover (%) 18 | 41 41 25 24 8 1 . . 7 12 11 17 44 39 9 . . . . . 35 Naked Turns 1 | . 1 . . . . . . . . . . . . . . . . . . . Heaviest Build 118 | . 4 3 3 26 41 41 36 52 58 61 74 3 71 78 72 86 118 108 108 89 Greatest Support 216 | 3 8 8 3 24 24 24 30 100 95 216 216 3 73 148 148 161 168 182 180 152 Greatest Overweight (x) 7 | . . . . 7 1 1 1 4 3 1 4 . . . . . 1 1 . . Average Overweight (x) . | . . . . . 1 1 1 . . . 1 . . . . . . . . . Largest Inventory Capacity 20 | 5 5 5 5 8 8 8 8 10 10 10 10 5 5 5 5 20 20 20 20 20 Average Capacity 14 | 5 5 5 5 7 8 8 8 8 10 10 9 5 5 5 5 15 20 20 20 19 Most Carried 20 | . 3 5 5 8 8 8 8 10 10 10 10 5 5 5 5 20 20 20 20 20 Average Carried 13 | . . 4 5 6 7 8 7 8 9 9 9 5 4 4 4 13 19 19 19 18 Final Capacity 20 | 5 5 5 5 8 8 8 8 10 10 10 5 5 5 5 5 20 20 20 20 5 Final Carried 20 | . 1 5 5 8 8 8 8 10 10 10 5 5 5 5 5 20 20 20 18 3 Class Distribution -------------------- 74% | Scavenger-Gladiator 5% | Derelict-Tank 4% | Mutant 4% | Commander-Gladiator 3% | Gladiator 3% | Scavenger-Mutant Dominant Class ---------------- Mutant | -10/Materials Mutant | -9/Materials Mutant | -8/Materials Mutant | -7/Factory Gladiator | -6/Factory Gladiator | -6/DSF Gladiator | -5/Factory Scavenger-Gladiator | -5/Extension Scavenger-Gladiator | -5/Cetus Scavenger-Gladiator | -5/Archives Scavenger-Gladiator | -4/Factory Scavenger-Mutant | -4/Upper Caves Scavenger-Mutant | -4/Upper Caves Derelict-Tank | -4/Warlord Scavenger-Gladiator | -3/Proximity Caves Scavenger-Gladiator | -3/Research Scavenger-Gladiator | -3/Testing Scavenger-Gladiator | -2/Research Scavenger-Gladiator | -2/Quarantine Scavenger-Gladiator | -2/Protoforge Resources | -11 -10 -9 -8 -7 -6 -6 -5 -5 -5 -5 -4 -4 -4 -4 -3 -3 -3 -2 -2 -2 ----------- Run | Yrd Mat Mat Mat Fac Fac DSF Fac Ext Cet Arc Fac Upp Upp War Pro Res Tes Res Qua Frg Matter Collected 6852 | 77 50 . . 250 272 50 . 536 190 49 69 90 44 138 31 440 2023 579 1249 715 Remotely . | . . . . . . . . . . . . . . . . . . . . . Salvage Created 15189 | . 50 . . 211 272 122 . 1628 332 . 56 221 72 213 127 1966 3721 1595 2602 2001 Parts 619 | . . . . 2 12 10 . 61 10 . 5 9 . 1 11 73 156 53 100 116 Haulers Intercepted 13 | . 1 . . 2 . . . . . . . . . . . 6 2 . 2 . Recyclers Shooed . | . . . . . . . . . . . . . . . . . . . . . Parts Field Recycled . | . . . . . . . . . . . . . . . . . . . . . Retrieved Matter . | . . . . . . . . . . . . . . . . . . . . . Parts Self-Destructed 9 | . . . . . . . . . . . . . . . 9 . . . . . Prevented . | . . . . . . . . . . . . . . . . . . . . . Parts Restored . | . . . . . . . . . . . . . . . . . . . . . Kills | -11 -10 -9 -8 -7 -6 -6 -5 -5 -5 -5 -4 -4 -4 -4 -3 -3 -3 -2 -2 -2 ------- Run | Yrd Mat Mat Mat Fac Fac DSF Fac Ext Cet Arc Fac Upp Upp War Pro Res Tes Res Qua Frg Combat Hostiles Destroyed 186 | . . . . 1 . 2 . 21 5 . 1 . . 3 4 16 53 20 28 32 Melee 174 | . . . . . . 2 . 21 5 . 1 . . 3 4 16 48 20 28 26 AOE 11 | . . . . . . . . . . . . . . . . . 5 . . 6 Classes Destroyed 27 | . 1 . . 3 1 1 . 5 . . 1 1 . . 1 1 6 3 1 2 Worker 7 | . . . . 3 1 . . . . . . . . . . 2 . . 1 . Builder 3 | . . . . . . . . 2 . . . . . . . . . . 1 . Tunneler 1 | . . . . 1 . . . . . . . . . . . . . . . . Hauler 13 | . 1 . . 2 . . . . . . . . . . . 6 2 . 2 . Recycler 5 | . . . . . 2 . . 1 . . . . . . . 2 . . . . Operator 3 | . . . . . . . . 1 . . . . . . . . . 1 . 1 Drone 2 | . . . . . . . . . . . . . . . . . . . . 2 Watcher 2 | . . . . . . . . . . . . . . . . . 1 . . 1 Swarmer 12 | . . . . . . . . . . . . . . . 4 4 . 4 . . Saboteur 1 | . . . . . . . . . . . . . . . . . 1 . . . Grunt 68 | . . . . 1 . . . 10 1 . . . . 3 . 4 29 8 8 4 Brawler 4 | . . . . . . . . 2 . . . . . . . . 1 . 1 . Duelist 4 | . . . . . . . . . . . . . . . . . 1 . 2 1 Protector 1 | . . . . . . . . . . . . . . . . . 1 . . . Researcher 6 | . . . . . . . . . . . . . . . . . 2 . 4 . Sentry 19 | . . . . . . . . 8 . . . . . . . 3 . 1 3 4 Demolisher 1 | . . . . . . . . . . . . . . . . . . 1 . . Specialist 4 | . . . . . . 2 . . . . . . . . . . 2 . . . Hunter 20 | . . . . . . . . 1 . . . . . . . 4 4 3 5 3 Programmer 29 | . . . . . . . . . . . 1 . . . . . 12 . 8 8 Q-Series 1 | . . . . . . . . . . . . . . . . . . . 1 . Behemoth 1 | . . . . . . . . . . . . . . . . . . 1 . . Cetus Guard 4 | . . . . . . . . . 4 . . . . . . . . . . . Hotshot 5 | . . . . . . . . . . . . . . . . . . . . 5 Decapitator 5 | . . . . . . . . . . . . . . . . . . . . 5 Striker 3 | . . . . . . . . . . . . . . . . 1 1 1 . . Executioner 1 | . . . . . . . . . . . . . . . . . . 1 . . Alpha 7 1 | . . . . . . . . . . . . . . . . . 1 . . . Decomposer 2 | . . . . . . . . . . . . 2 . . . . . . . . Samaritan 2 | . . . . . . . . . . . . 2 . . . . . . . . Best Kill Streak 10 | . 1 . . 3 3 1 . 4 3 . 1 . . 2 2 4 6 4 10 8 Combat Bots Only 10 | . . . . 1 . 1 . 3 3 . 1 . . 2 2 4 6 4 10 8 Max Kills in Single Turn 5 | . 1 . . 1 1 1 . 1 1 . 1 1 . 1 1 1 3 1 1 5 Gunslinging . | . . . . . . . . . . . . . . . . . . . . . Exploded 5 | . . . . . . . . . . . . . . . . . 3 . . 5 Melee 2 | . . . . . . 1 . 1 1 . 1 . . 1 1 1 2 1 1 1 Uniques/NPCs Destroyed . | . . . . . . . . . . . . . . . . . . . . . Combat | -11 -10 -9 -8 -7 -6 -6 -5 -5 -5 -5 -4 -4 -4 -4 -3 -3 -3 -2 -2 -2 -------- Run | Yrd Mat Mat Mat Fac Fac DSF Fac Ext Cet Arc Fac Upp Upp War Pro Res Tes Res Qua Frg Hostile Shots Fired 2130 | . 9 12 37 27 . 12 . 271 100 13 134 . . 72 15 161 495 204 292 276 Missed 689 | . 6 4 8 12 . 3 . 77 19 5 49 . . 39 4 70 166 62 80 85 Hits 1441 | . 3 8 29 15 . 9 . 194 81 8 85 . . 33 11 91 329 142 212 191 Melee 52 | . . . . . . . . 1 . . 18 . . 4 . 2 13 . 9 5 Projectile 1389 | . 3 8 29 15 . 9 . 193 81 8 67 . . 29 11 89 316 142 203 186 AOE 6 | . . . . . . . . . . . . . . . . . . 5 1 . Critical Strikes 87 | . . . 1 . . 1 . 12 7 . 5 . . 4 . 4 23 5 8 17 Part Disruptions 3 | . . . . . . . . . . . . . . . . . 1 . 1 1 Damage Taken 33436 | 2 40 105 402 116 . 174 . 4206 2332 201 1880 . . 612 248 1878 7610 3213 4628 5789 Core 3752 | . 17 46 163 15 . 16 . 548 309 . 183 . . 18 20 243 724 256 361 833 Absorbed by Shields 1690 | . . . . . . . . 269 159 . 74 . . . . . . 594 486 108 Redirected to Shielding 55 | . . . . . . . . . . . . . . . . . 21 34 . . Ignored by Resistances 134 | . . . . . . . . . . . . . . . . . . 67 67 . Regen/Repaired (Parts) 3249 | . . . . . . . . . 68 14 103 . . 323 . 258 742 . 582 1159 Core Remaining (%) 73 | 100 93 88 70 97 . 98 . . . 14 . . . . 80 . 25 . . . Volleys Fired 12 | . . . . . . . . . . . . . . . . . 7 . . 5 Largest 1 | . . . . . . . . . . . . . . . . . 1 . . 1 Hottest 90 | . . . . . . . . . . . . . . . . . 90 . . 30 Shots Fired 14 | . . . . . . . . . . . . . . 1 2 . 6 . . 5 Gun 3 | . . . . . . . . . . . . . . . . . 3 . . . Cannon 3 | . . . . . . . . . . . . . . 1 2 . . . . . Launcher 8 | . . . . . . . . . . . . . . . . . 3 . . 5 Special . | . . . . . . . . . . . . . . . . . . . . . Kinetic 3 | . . . . . . . . . . . . . . 1 2 . . . . . Thermal 3 | . . . . . . . . . . . . . . . . . 3 . . . Explosive 8 | . . . . . . . . . . . . . . . . . 3 . . 5 Electromagnetic . | . . . . . . . . . . . . . . . . . . . . . Robot Hit Streak 2 | . . . . . . . . . . . . . . . . . 1 . . 2 Robot Miss Streak 1 | . . . . . . . . . . . . . . 1 . . 1 . . 1 Penetration Max . | . . . . . . . . . . . . . . . . . . . . . Secondary Targets . | . . . . . . . . . . . . . . . . . . . . . Shots Hit Robots 724 | . 5 . . 14 3 2 . 103 24 1 18 6 1 11 7 64 199 76 121 69 Core Hits 335 | . . . . . 2 2 . 40 12 . 5 3 . 4 4 35 81 35 63 49 Critical Kills . | . . . . . . . . . . . . . . . . . . . . . Critical Parts Destroyed 4 | . . . . 4 . . . . . . . . . . . . . . . . Critical Strikes 122 | . . . . 4 . 1 . 11 . . 2 2 . . 1 9 38 16 31 7 Smash 4 | . . . . 4 . . . . . . . . . . . . . . . . Sever 109 | . . . . . . . . 7 . . . . . . 1 9 38 16 31 7 Impale 9 | . . . . . . 1 . 4 . . 2 2 . . . . . . . . Melee Attacks 1003 | . 6 . . 24 4 5 7 111 25 2 21 7 5 11 13 88 278 109 176 111 Kinetic 3 | . . . . . . . . . . . . . . . . . . . 3 . Impact 27 | . 6 . . 21 . . . . . . . . . . . . . . . . Slashing 823 | . . . . . . . . 49 7 . . . . 2 11 83 278 109 173 111 Piercing 150 | . . . . 3 4 5 7 62 18 2 21 7 5 9 2 5 . . . . Sneak Attacks 44 | . 1 . . 6 3 1 . 6 . . . 4 . . . 11 3 . 7 2 Combat Hostiles . | . . . . . . . . . . . . . . . . . . . . . Follow-up Attacks 205 | . . . . . . . . 12 6 . 4 . . . 1 11 81 33 37 20 Damage Inflicted 44883 | 5 175 6 1 574 198 87 . 4424 950 41 585 437 96 479 302 4123 13493 4407 7872 6628 Guns . | . . . . . . . . . . . . . . . . . . . . . Cannons . | . . . . . . . . . . . . . . . . . . . . . Explosions 3596 | . . . . . . . . . . . . . . . . . 1720 . . 1876 Melee 41274 | . 175 . . 574 198 87 . 4424 950 41 584 437 96 479 302 4123 11773 4407 7872 4752 Ramming 13 | 5 . 6 1 . . . . . . . 1 . . . . . . . . . Kinetic 106 | . . . . . . . . . . . . . . . . . . . 106 . Thermal . | . . . . . . . . . . . . . . . . . . . . . Explosive 3596 | . . . . . . . . . . . . . . . . . 1720 . . 1876 Electromagnetic . | . . . . . . . . . . . . . . . . . . . . . Impact 749 | . 175 . . 574 . . . . . . . . . . . . . . . . Slashing 35461 | . . . . . . . . 2068 303 . . . . 89 262 4041 11773 4407 7766 4752 Piercing 4958 | . . . . . 198 87 . 2356 647 41 584 437 96 390 40 82 . . . . Highest Corruption 18 | . . . . 4 . . . 15 15 15 1 1 1 4 4 . 18 . 3 14 Average Corruption 6 | . . . . 2 . . . 4 15 15 1 1 1 3 4 . 12 . 2 2 Corruption Purged 15 | . . . . . . . . . . . . . . . . . 12 . 3 . Corruption Blocked . | . . . . . . . . . . . . . . . . . . . . . Effects 177 | . . . . 3 . . . 31 22 10 . 1 1 6 12 . 70 . 8 13 Message Errors 40 | . . . . . . . . 6 3 2 . . . 3 4 . 17 . 2 3 Matter Fused 46 | . . . . 2 . . . 7 6 2 . . . 1 2 . 21 . 1 4 Heat Flow Errors 19 | . . . . . . . . 4 3 2 . . . . 1 . 6 . 2 1 Energy Discharges 25 | . . . . . . . . 2 2 4 . 1 . 1 2 . 10 . 2 1 Parts Rejected 4 | . . . . . . . . 2 . . . . . . . . 1 . . 1 Parts Fused 1 | . . . . . . . . . 1 . . . . . . . . . . . Data Loss (minor) 21 | . . . . . . . . 8 2 . . . 1 . . . 8 . . 2 Data Loss (major) 13 | . . . . 1 . . . 2 4 . . . . . 1 . 3 . 1 1 Misfires 3 | . . . . . . . . . . . . . . 1 2 . . . . . Alerts 2 | . . . . . . . . . . . . . . . . . 2 . . . Misdirections 2 | . . . . . . . . . 1 . . . . . . . 1 . . . Weapon Failures 1 | . . . . . . . . . . . . . . . . . 1 . . . Overload Shots . | . . . . . . . . . . . . . . . . . . . . . Overflow Damage 2733 | . 16 . . 304 40 . . 237 6 . 1 167 62 . 14 50 932 . 264 640 Projectiles . | . . . . . . . . . . . . . . . . . . . . . Explosions 343 | . . . . . . . . . . . . . . . . . 197 . . 146 Melee 2390 | . 16 . . 304 40 . . 237 6 . 1 167 62 . 14 50 735 . 264 494 Knockbacks 2 | 1 . . . 1 . . . . . . . . . . . . . . . . Impact 2 | 1 . . . 1 . . . . . . . . . . . . . . . . Kinetic . | . . . . . . . . . . . . . . . . . . . . . Secondary . | . . . . . . . . . . . . . . . . . . . . . Self-Inflicted Damage 174 | 2 . 2 . . . . . . . . . . . . . . . . . 170 Shots 1 | . . . . . . . . . . . . . . . . . . . . 1 Rammed 5 | 1 . 2 1 . . . . . . . 1 . . . . . . . . . Targets Rammed 5 | 1 . 2 1 . . . . . . . 1 . . . . . . . . . Kicked . | . . . . . . . . . . . . . . . . . . . . . Crushed . | . . . . . . . . . . . . . . . . . . . . . Highest Temperature 443 | . . . . . . . . 261 175 257 . . . 17 243 316 265 443 131 42 Average Temperature 100 | . . . . . . . . 85 78 104 . . . 10 94 134 88 201 41 42 Received Heat Transfer 4568 | . 21 30 144 33 . . . 1146 343 18 57 . . 138 . 105 884 865 385 399 Effects 3 | . . . . . . . . . . . . . . . . . 3 . . . Interference 3 | . . . . . . . . . . . . . . . . . 3 . . . Siege Activations . | . . . . . . . . . . . . . . . . . . . . . Martial Activations . | . . . . . . . . . . . . . . . . . . . . . Shielding Activations . | . . . . . . . . . . . . . . . . . . . . . Robots Disrupted . | . . . . . . . . . . . . . . . . . . . . . Combat Hostiles . | . . . . . . . . . . . . . . . . . . . . . Robots Corrupted 4 | . 1 . . 3 . . . . . . . . . . . . . . . . Combat Hostiles 1 | . . . . 1 . . . . . . . . . . . . . . . . Parts Fried 7 | . . . . 7 . . . . . . . . . . . . . . . . Impact Corruptions 10 | . 1 . . 9 . . . . . . . . . . . . . . . . Robots Melted . | . . . . . . . . . . . . . . . . . . . . . Combat Hostiles . | . . . . . . . . . . . . . . . . . . . . . Parts Melted 3 | . . . . . . . . . . . . . . 2 . 1 . . . . Heat Transferred . | . . . . . . . . . . . . . . . . . . . . . Parts Sabotaged 1 | . . . . . . . . . . . . . . . . . . . 1 . Parts Stolen . | . . . . . . . . . . . . . . . . . . . . . Parts Stripped . | . . . . . . . . . . . . . . . . . . . . . Power Chain Reactions . | . . . . . . . . . . . . . . . . . . . . . Alert | -11 -10 -9 -8 -7 -6 -6 -5 -5 -5 -5 -4 -4 -4 -4 -3 -3 -3 -2 -2 -2 ------- Run | Yrd Mat Mat Mat Fac Fac DSF Fac Ext Cet Arc Fac Upp Upp War Pro Res Tes Res Qua Frg Maximum Alert Level 3 | . . . . . . . . 3 2 1 2 . . . . 1 3 2 3 3 Low Security (%) 21 | 100 100 100 100 100 100 100 100 21 . . 36 . . . . 64 1 . 5 . Level 1 23 | . . . . . . . . 18 . 100 4 . . . . 35 48 . 36 5 Level 2 39 | . . . . . . . . 44 100 . 58 . . . . . 30 100 42 32 Level 3 14 | . . . . . . . . 15 . . . . . . . . 19 . 14 62 Level 4 . | . . . . . . . . . . . . . . . . . . . . . Level 5 . | . . . . . . . . . . . . . . . . . . . . . High Security . | . . . . . . . . . . . . . . . . . . . . . Max Security . | . . . . . . . . . . . . . . . . . . . . . Peak Influence 1075 | . 7 . 135 73 10 55 30 973 654 349 534 . . . . 281 1075 602 766 963 Initial 602 | . . . . 56 . . 28 1 540 225 93 . . . . 63 141 602 288 399 Average 405 | . . . 9 31 1 36 8 418 553 286 327 . . . . 126 483 492 468 690 Influence Increases 9058 | . 7 . 135 106 16 55 14 1920 478 164 742 . 5 60 220 708 1744 513 1077 1094 Destroy 0b10 Robot/C 4740 | . . . . 20 . 40 . 920 240 80 260 . . 60 80 320 1080 400 640 600 Destroy 0b10 Robot/NC 215 | . 5 . . 30 15 . . 30 10 . . . 5 . . 50 25 5 20 20 Destroy Leader 704 | . 2 . . 4 . . . 124 10 . 80 . . . 20 82 136 60 94 92 Allied During Kill 1145 | . . . . . . . . 619 168 80 278 . . . . . . . . . Successful Hack 104 | . . . . . . . 4 21 . . 12 . . . . . 28 . 5 34 Disable Machine 255 | . . . . . . . . 60 . . 15 . . . . 15 60 . 90 15 Anti-Garrison Action 500 | . . . . . . . . . . . . . . . . 150 200 . 150 . Destroy Structure 405 | . . . . 7 1 . 10 56 20 4 82 . . . . 16 50 18 33 108 Partial Spotted 45 | . . . . . . . . . . . . . . . . . 30 . . 15 Lose Combat Pursuer 945 | . . . 135 45 . 15 . 90 30 . 15 . . . 120 75 135 30 45 210 Influence Decreases 8125 | . 7 . 10 231 16 . 65 957 881 459 576 242 138 120 125 550 926 1071 880 871 Entered New Map 2450 | . . . . 69 . . 27 3 427 339 176 162 38 60 . 32 112 469 225 311 Time Decay 4305 | . 7 . 10 162 16 . 38 564 214 110 230 80 100 50 125 458 624 482 565 470 Lost Part 920 | . . . . . . . . 210 120 10 50 . . 10 . 40 190 120 80 90 Lost Ally 450 | . . . . . . . . 180 120 . 120 . . . . 20 . . 10 . Squads Dispatched 61 | . 1 . 2 2 . 1 . 7 1 . 5 . . . . 6 15 1 14 6 Investigation 16 | . . . 1 . . . . 3 1 . . . . . . 5 4 . 1 1 Extermination 13 | . . . . 1 . . . . . . 1 . . . . . 4 . 4 3 Reinforcement 18 | . 1 . 1 1 . 1 . 3 . . . . . . . 1 4 1 3 2 Assault 8 | . . . . . . . . 1 . . 1 . . . . . 3 . 3 . Garrison 6 | . . . . . . . . . . . 3 . . . . . . . 3 . Intercept . | . . . . . . . . . . . . . . . . . . . . . Searches Triggered . | . . . . . . . . . . . . . . . . . . . . . Construction Impeded 2 | . . . . . . . . 2 . . . . . . . . . . . . Haulers Reinforced 4 | . . . . 1 . . . . . . . . . . . 1 1 1 . . Active Scanning Responses . | . . . . . . . . . . . . . . . . . . . . . Cargo Convoy Interrupts . | . . . . . . . . . . . . . . . . . . . . . Stealth | -11 -10 -9 -8 -7 -6 -6 -5 -5 -5 -5 -4 -4 -4 -4 -3 -3 -3 -2 -2 -2 --------- Run | Yrd Mat Mat Mat Fac Fac DSF Fac Ext Cet Arc Fac Upp Upp War Pro Res Tes Res Qua Frg Distress Signals 23 | . . . 2 1 . . . 2 2 . . . . . . 3 2 7 . 4 Communications Jammed . | . . . . . . . . . . . . . . . . . . . . . Distress Signals . | . . . . . . . . . . . . . . . . . . . . . Times Spotted 413 | . 5 9 21 6 . 4 . 55 16 4 22 . . 31 11 29 74 29 43 54 Peak Tracking Total 20 | . 4 9 20 2 . 2 . 11 6 2 12 . . 11 5 6 9 5 9 13 Tactical Retreats 39 | . . . 1 3 . 1 . 5 1 . 1 . . . 4 4 6 2 3 8 Traps | -11 -10 -9 -8 -7 -6 -6 -5 -5 -5 -5 -4 -4 -4 -4 -3 -3 -3 -2 -2 -2 ------- Run | Yrd Mat Mat Mat Fac Fac DSF Fac Ext Cet Arc Fac Upp Upp War Pro Res Tes Res Qua Frg Traps Triggered 9 | . . . 1 2 . . . 4 . . . . . . . . . . . 2 Indirectly . | . . . . . . . . . . . . . . . . . . . . . Trap Hack Attempts . | . . . . . . . . . . . . . . . . . . . . . Triggered . | . . . . . . . . . . . . . . . . . . . . . Disarmed . | . . . . . . . . . . . . . . . . . . . . . Reprogrammed . | . . . . . . . . . . . . . . . . . . . . . Reused . | . . . . . . . . . . . . . . . . . . . . . Traps Extracted . | . . . . . . . . . . . . . . . . . . . . . Installed . | . . . . . . . . . . . . . . . . . . . . . Triggered . | . . . . . . . . . . . . . . . . . . . . . Machines | -11 -10 -9 -8 -7 -6 -6 -5 -5 -5 -5 -4 -4 -4 -4 -3 -3 -3 -2 -2 -2 ---------- Run | Yrd Mat Mat Mat Fac Fac DSF Fac Ext Cet Arc Fac Upp Upp War Pro Res Tes Res Qua Frg Machines Disabled 22 | . . . . . . . . 4 1 . 1 1 1 . . 2 4 . 7 1 Max in Single Turn 1 | . . . . . . . . 1 . . . 1 1 . . 1 1 . 1 1 Garrison Access 4 | . . . 1 . . . . . . . . . . . . 1 1 . 1 . Machines Repaired . | . . . . . . . . . . . . . . . . . . . . . Machines Dismantled . | . . . . . . . . . . . . . . . . . . . . . Machines Sabotaged . | . . . . . . . . . . . . . . . . . . . . . Overloaded Fab Kills . | . . . . . . . . . . . . . . . . . . . . . Hacking | -11 -10 -9 -8 -7 -6 -6 -5 -5 -5 -5 -4 -4 -4 -4 -3 -3 -3 -2 -2 -2 --------- Run | Yrd Mat Mat Mat Fac Fac DSF Fac Ext Cet Arc Fac Upp Upp War Pro Res Tes Res Qua Frg Machines Accessed 36 | . . . 1 . 1 . 1 7 1 . 2 . . 3 . 3 6 . 6 5 Terminals 18 | . . . . . 1 . 1 7 1 . . . . . . . 1 . 3 4 Fabricators 1 | . . . . . . . . . . . 1 . . . . . . . . . Repair Stations 4 | . . . . . . . . . . . . . . . . . 2 . 1 1 Recycling Units 1 | . . . . . . . . . . . . . . . . 1 . . . . Scanalyzers 5 | . . . . . . . . . . . 1 . . . . 1 2 . 1 . Garrison Access 4 | . . . 1 . . . . . . . . . . . . 1 1 . 1 . Total Hacks 81 | . . . 1 . 1 . 1 14 4 . 9 . . 14 . 5 10 . 14 8 Successful 41 | . . . 1 . 1 . 1 5 . . 7 . . 14 . 1 4 . 5 2 Failed 38 | . . . . . . . . 9 4 . 1 . . . . 4 6 . 8 6 Catastrophic 17 | . . . . . . . . 4 2 . 1 . . . . 1 3 . 3 3 Database Lockouts 2 | . . . . . . . . . . . 1 . . . . . . . 1 . Manual 20 | . . . . . . . . 3 1 . 2 . . 2 . 1 3 . 7 1 Terminals 33 | . . . . . 1 . 1 14 4 . . . . . . . 2 . 6 5 Fabricators 2 | . . . . . . . . . . . 2 . . . . . . . . . Repair Stations 11 | . . . . . . . . . . . . . . . . . 4 . 4 3 Recycling Units 1 | . . . . . . . . . . . . . . . . 1 . . . . Scanalyzers 16 | . . . . . . . . . . . 7 . . . . 3 3 . 3 . Garrison Access 4 | . . . 1 . . . . . . . . . . . . 1 1 . 1 . Terminal Hacks 21 | . . . . . 1 . 1 5 . . . . . 14 . . . . . . Record 9 | . . . . . . . . 1 . . . . . 8 . . . . . . Prototype ID Bank 6 | . . . . . . . . . . . . . . 6 . . . . . . Open Door 5 | . . . . . . . 1 4 . . . . . . . . . . . . Open DSF 1 | . . . . . 1 . . . . . . . . . . . . . . . Fabricator Hacks . | . . . . . . . . . . . . . . . . . . . . . Repair Station Hacks 5 | . . . . . . . . . . . . . . . . . 2 . 2 1 Scan Component 3 | . . . . . . . . . . . . . . . . . 1 . 1 1 Repair 2 | . . . . . . . . . . . . . . . . . 1 . 1 . Recycling Unit Hacks 1 | . . . . . . . . . . . . . . . . 1 . . . . Retrieve Components 1 | . . . . . . . . . . . . . . . . 1 . . . . Scanalyzer 7 | . . . . . . . . . . . 6 . . . . . . . 1 . Retrieve Study 7 | . . . . . . . . . . . 6 . . . . . . . 1 . Garrison Access Hacks 1 | . . . 1 . . . . . . . . . . . . . . . . . Seal Access 1 | . . . 1 . . . . . . . . . . . . . . . . . Unauthorized Hacks 6 | . . . . . . . . . . . 1 . . . . . 2 . 2 1 Terminals 1 | . . . . . . . . . . . . . . . . . . . . 1 Botnet 1 | . . . . . . . . . . . . . . . . . . . . 1 Fabricators 1 | . . . . . . . . . . . 1 . . . . . . . . . Liberate 1 | . . . . . . . . . . . 1 . . . . . . . . . Repair Stations 2 | . . . . . . . . . . . . . . . . . 1 . 1 . Patch 2 | . . . . . . . . . . . . . . . . . 1 . 1 . Recycling Units . | . . . . . . . . . . . . . . . . . . . . . Scanalyzers 1 | . . . . . . . . . . . . . . . . . . . 1 . Researchers 1 | . . . . . . . . . . . . . . . . . . . 1 . Garrison Access 1 | . . . . . . . . . . . . . . . . . 1 . . . Jam 1 | . . . . . . . . . . . . . . . . . 1 . . . Data Cores Recovered 1 | . . . . . . . . . . . . . . . . . . . . 1 Used . | . . . . . . . . . . . . . . . . . . . . . Hacking Detections 26 | . . . . . 1 . 1 5 2 . 1 . . . . 3 4 . 5 4 Full Trace Events 8 | . . . . . . . . 3 1 . . . . . . 1 2 . . 1 Feedback Events 1 | . . . . . . . . . . . . . . . . . . . . 1 Corruption 1 | . . . . . . . . . . . . . . . . . . . . 1 Feedback Blocked . | . . . . . . . . . . . . . . . . . . . . . Robot Schematics Acquired 6 | . . . . . . . . . . . . . . . . . 4 . 2 . Robots Built . | . . . . . . . . . . . . . . . . . . . . . Authchips . | . . . . . . . . . . . . . . . . . . . . . Time . | . . . . . . . . . . . . . . . . . . . . . Total Robot Build Rating . | . . . . . . . . . . . . . . . . . . . . . Part Schematics Acquired 13 | . . . . . . . . . . . . . . . . . 4 . 9 . Parts Built . | . . . . . . . . . . . . . . . . . . . . . Authchips . | . . . . . . . . . . . . . . . . . . . . . Time . | . . . . . . . . . . . . . . . . . . . . . Total Part Build Rating . | . . . . . . . . . . . . . . . . . . . . . Part Studies Acquired 6 | . . . . . . . . . . . 5 . . . . . . . 1 . Parts Repaired 2 | . . . . . . . . . . . . . . . . . 1 . 1 . Time 116 | . . . . . . . . . . . . . . . . . 54 . 62 . Parts Recycled . | . . . . . . . . . . . . . . . . . . . . . Recycled Matter . | . . . . . . . . . . . . . . . . . . . . . Retrieved Matter . | . . . . . . . . . . . . . . . . . . . . . Retrieved Components 1 | . . . . . . . . . . . . . . . . 1 . . . . Parts Scanalyzed . | . . . . . . . . . . . . . . . . . . . . . Part Schematics Acquired . | . . . . . . . . . . . . . . . . . . . . . Parts Damaged . | . . . . . . . . . . . . . . . . . . . . . Bothacking | -11 -10 -9 -8 -7 -6 -6 -5 -5 -5 -5 -4 -4 -4 -4 -3 -3 -3 -2 -2 -2 ------------ Run | Yrd Mat Mat Mat Fac Fac DSF Fac Ext Cet Arc Fac Upp Upp War Pro Res Tes Res Qua Frg Used RIF Installer . | . . . . . . . . . . . . . . . . . . . . . Robots Hacked . | . . . . . . . . . . . . . . . . . . . . . Non-combat . | . . . . . . . . . . . . . . . . . . . . . Combat . | . . . . . . . . . . . . . . . . . . . . . Robot Hacks Applied . | . . . . . . . . . . . . . . . . . . . . . Relay Couplers Released 3 | . . . . . . . . . . . . . . . . 2 . . 1 . Machine Destruction 3 | . . . . . . . . . . . . . . . . 2 . . 1 . Fabnet Peak Effective % . | . . . . . . . . . . . . . . . . . . . . . Robots Rewired 13 | . . . . . . . . 13 . . . . . . . . . . . . Allies Hacked 1 | . . . . . . . . 1 . . . . . . . . . . . . Hacks Repelled . | . . . . . . . . . . . . . . . . . . . . . Allies | -11 -10 -9 -8 -7 -6 -6 -5 -5 -5 -5 -4 -4 -4 -4 -3 -3 -3 -2 -2 -2 -------- Run | Yrd Mat Mat Mat Fac Fac DSF Fac Ext Cet Arc Fac Upp Upp War Pro Res Tes Res Qua Frg Total Allies 27 | . . . . . . . . 20 5 . 2 . . . . . . . . . Largest Group 12 | . . . . . . . . 12 7 5 7 . . . . . . . . . Highest-Rated Group 575 | . . . . . . . . 383 575 418 530 . . . . . . . . . Highest-Rated Ally 159 | . . . . . . . . 159 144 96 96 . . . . . . . . . Total Orders 5 | . . . . . . . . . . . . . . . . 4 . . 1 . EXPLORE 5 | . . . . . . . . . . . . . . . . 4 . . 1 . Ally Attacks 374 | . . . . . . . . 204 75 23 72 . . . . . . . . . Total Damage 10042 | . . . . . . . . 4036 2434 927 2645 . . . . . . . . . Kills 57 | . . . . . . . . 32 9 4 12 . . . . . . . . . Allies Corrupted 1 | . . . . . . . . 1 . . . . . . . . . . . . Allies Melted 3 | . . . . . . . . . 1 . . . . 2 . . . . . . Intel | -11 -10 -9 -8 -7 -6 -6 -5 -5 -5 -5 -4 -4 -4 -4 -3 -3 -3 -2 -2 -2 ------- Run | Yrd Mat Mat Mat Fac Fac DSF Fac Ext Cet Arc Fac Upp Upp War Pro Res Tes Res Qua Frg Active Infowar (turns) 6906 | . 19 15 40 373 117 76 153 1921 307 . . . . . . 279 . 722 1691 1193 Optics 6872 | . . . 40 373 117 76 153 1921 307 . . . . . . 279 . 722 1691 1193 Seismic 34 | . 19 15 . . . . . . . . . . . . . . . . . . Robot Analysis Total . | . . . . . . . . . . . . . . . . . . . . . Derelict Logs Recovered 3 | . . . . . . . . . . . . 1 2 . . . . . . . Drone Launches 12 | . . . . . . . . . . . . . . . . 9 . . 3 . Drone Recoveries 9 | . . . . . . . . . . . . . . . . 7 . . 2 . Exploration | -11 -10 -9 -8 -7 -6 -6 -5 -5 -5 -5 -4 -4 -4 -4 -3 -3 -3 -2 -2 -2 ------------- Run | Yrd Mat Mat Mat Fac Fac DSF Fac Ext Cet Arc Fac Upp Upp War Pro Res Tes Res Qua Frg Turns Passed 13357 | 14 76 77 62 373 117 76 153 1921 445 220 496 161 202 1033 338 1344 2125 1240 1691 1193 Spaces Moved 9382 | 19 117 128 118 309 104 65 152 1172 213 116 321 272 300 772 281 965 1289 816 1096 757 Core 993 | 19 40 119 118 37 . . . . . . 47 272 259 . . . . . . 82 Treads 183 | . . . . . . . . 1 61 79 42 . . . . . . . . . Legs 6787 | . . . . 69 . . . 467 152 37 127 . 41 772 281 965 1289 816 1096 675 Wheels 105 | . . . . . . . . . . . 105 . . . . . . . . . Hover 106 | . . . . . . . . 106 . . . . . . . . . . . . Flight 1208 | . 77 9 . 203 104 65 152 598 . . . . . . . . . . . . Fastest Speed 23 | 50 37 37 50 50 91 91 88 23 120 160 50 50 50 107 107 107 107 110 113 50 Average Speed 106 | 50 41 49 50 90 91 91 88 109 166 169 126 50 58 109 107 108 110 116 117 112 Slowest Speed 400 | 50 50 50 50 400 94 91 88 330 330 190 190 50 110 110 107 110 182 182 125 120 Overloaded Moves . | . . . . . . . . . . . . . . . . . . . . . Propulsion Burnouts . | . . . . . . . . . . . . . . . . . . . . . Robots Hopped 2 | . . . . . . . . 2 . . . . . . . . . . . . Potential Cave-ins . | . . . . . . . . . . . . . . . . . . . . . Cave-ins Triggered . | . . . . . . . . . . . . . . . . . . . . . Exploration Rate (%) 42 | 4 28 23 21 13 6 56 5 83 60 78 11 57 44 83 54 39 91 26 87 23 Regions Visited 20 Branch Regions 10 Pre-discovered Areas 2 | . . . . . . . . . . . . 1 1 . . . . . . . Known Exits Taken 6 | . . . . . 1 . . . . . . . . . 1 1 1 1 1 . Unknown Exits Taken 13 | 1 1 1 1 1 . . 1 1 1 1 1 1 1 1 . . . . . . Scrap Searched 2 | . . . . . . . . . . . . . 2 . . . . . . . Spaces Dug 75 | . . . . 8 1 . 5 . . 1 2 . 2 . 3 8 10 6 11 18 Terrain Destroyed 105 | . . . . 8 1 . 5 . . 1 2 . 2 . 4 8 22 6 11 35 Melee 69 | . . . . 8 1 . 5 . . 1 2 . 2 . 3 8 10 6 11 12 Projectile 1 | . . . . . . . . . . . . . . . 1 . . . . . AOE 35 | . . . . . . . . . . . . . . . . . 12 . . 23 Terrain Rammed . | . . . . . . . . . . . . . . . . . . . . . Walls Destroyed . | . . . . . . . . . . . . . . . . . . . . . Machines Disabled . | . . . . . . . . . . . . . . . . . . . . . Actions | -11 -10 -9 -8 -7 -6 -6 -5 -5 -5 -5 -4 -4 -4 -4 -3 -3 -3 -2 -2 -2 --------- Run | Yrd Mat Mat Mat Fac Fac DSF Fac Ext Cet Arc Fac Upp Upp War Pro Res Tes Res Qua Frg Total 11660 | 21 132 141 119 359 121 72 160 1621 272 139 376 280 314 944 301 1199 1713 1024 1398 954 Wait 584 | . . . . 8 . . . 96 7 8 . . 1 145 8 49 90 29 71 72 Move 9360 | 18 116 127 117 308 103 64 151 1168 212 115 321 271 299 771 280 964 1288 815 1095 757 Hop 1 | . . . . . . . . 1 . . . . . . . . . . . . Pick Up 164 | . 3 3 . 3 5 . 2 16 10 3 5 1 1 . 1 29 22 20 28 12 Fast Attach 195 | 2 3 5 1 9 2 2 . 26 7 3 9 . 7 8 . 25 35 28 19 4 Attach 78 | . 2 . . 1 2 . 2 8 4 1 7 . 1 1 . 7 14 6 10 12 Detach 18 | . . 1 . 1 . . . . . 1 1 . . 1 . 4 4 2 1 2 Swap 91 | . . . . 1 1 . . 16 4 . 2 . . . . 12 27 14 7 7 Drop 285 | . 2 3 . 4 4 2 . 28 9 6 15 1 . 7 1 42 51 46 49 15 Fire 12 | . . . . . . . . . . . . . . . . . 7 . . 5 Melee 705 | . 6 . . 24 4 4 5 99 19 2 16 7 5 11 11 67 175 64 118 68 Ram 4 | 1 . 2 1 . . . . . . . . . . . . . . . . . Kick . | . . . . . . . . . . . . . . . . . . . . . Crush . | . . . . . . . . . . . . . . . . . . . . . Escape Stasis 22 | . . . . . . . . 22 . . . . . . . . . . . . Rewire 141 | . . . . . . . . 141 . . . . . . . . . . . . Trap . | . . . . . . . . . . . . . . . . . . . . . Miscellaneous . | . . . . . . . . . . . . . . . . . . . . . Route ------- -11/Scrapyard -10/Materials -9/Materials -8/Materials -7/Factory -6/Factory -6/DSF -5/Factory -5/Extension (discovered 2 exits: *Fac / *Cet) -5/Cetus (discovered 2 exits: *Fac / *Arc) -5/Archives (discovered 3 exits: *Fac / [*Hub x2]) -4/Factory -4/Upper Caves -4/Upper Caves (discovered 2 exits: *Res / *War) -4/Warlord -3/Proximity Caves -3/Research (discovered 2 exits: *Res / *Tes) -3/Testing -2/Research -2/Quarantine (discovered 3 exits: [*Acc] / *Sec / *Frg) -2/Protoforge History --------- Turn | Location | Event 8 | -11/Scrapyard | Discovered new exit (range 13) 15 | -11/Scrapyard | Entered Materials 85 | -10/Materials | Discovered new exit (range 15) 91 | -10/Materials | Entered another Materials area 91 | -9/Materials | Evolved 2 slots: Propulsion x2 163 | -9/Materials | Discovered new exit (range 13) 168 | -9/Materials | Entered another Materials area 168 | -8/Materials | Evolved 2 slots: Utility x2 220 | -8/Materials | Discovered new exit (range 19) 230 | -8/Materials | Entered Factory 230 | -7/Factory | Evolved 2 slots: Utility x2 326 | -7/Factory | Build established: Mutant 594 | -7/Factory | Discovered new exit (range 8) 603 | -7/Factory | Entered another Factory area 603 | -6/Factory | Evolved 2 slots: Utility x2 720 | -6/Factory | Identified exit to DSF 720 | -6/Factory | Entered DSF 739 | -6/DSF | Discovered new exit (range 22) 763 | -6/DSF | Additional patrols routed to DSF 796 | -6/DSF | Entered Factory 796 | -5/Factory | Evolved 2 slots: Propulsion x2 932 | -5/Factory | Build established: Gladiator 943 | -5/Factory | Discovered new exit (range 9) 949 | -5/Factory | Entered Extension 959 | -5/Extension | Disrupted transfer network 1123 | -5/Extension | Lost 5 parts (1p4u) 1146 | -5/Extension | Rescued a captive Derelict 1147 | -5/Extension | Rescued a captive Derelict 1529 | -5/Extension | Build established: Commander-Gladiator 1555 | -5/Extension | Lost 4 allies 1726 | -5/Extension | Spotted B-75 Beast 1734 | -5/Extension | Spotted B-75 Beast 1754 | -5/Extension | Allies destroyed B-75 Beast 1772 | -5/Extension | Allies destroyed B-75 Beast 1798 | -5/Extension | Lost 5 parts (1p3n1u) 2147 | -5/Extension | Build established: Scavenger-Gladiator 2357 | -5/Extension | Rescued a captive Derelict 2359 | -5/Extension | Rescued a captive Derelict 2440 | -5/Extension | Rescued A7 2449 | -5/Extension | First assault squad dispatched 2559 | -5/Extension | Core integrity fell below 50% 2577 | -5/Extension | System corruption reached 10% 2592 | -5/Extension | Lost 10 parts (6n3u1w) 2653 | -5/Extension | Lost 5 allies 2696 | -5/Extension | Rescued a captive Derelict 2697 | -5/Extension | Rescued a captive Derelict 2826 | -5/Extension | Discovered new exit (range 10) 2827 | -5/Extension | Discovered new exit (range 6) 2870 | -5/Extension | Entered Cetus 2870 | -5/Cetus | Accompanied by 6 allies (A7) 2875 | -5/Cetus | Acquired a Cetus Manufacturing Module code from A7 2881 | -5/Cetus | Spotted Cetus Guard 2882 | -5/Cetus | Spotted Cetus Guard 2887 | -5/Cetus | Spotted Cetus Guard 2890 | -5/Cetus | Spotted Cetus Guard 2915 | -5/Cetus | Allies destroyed Cetus Guard 2920 | -5/Cetus | Allies destroyed Cetus Guard 2929 | -5/Cetus | Allies destroyed Cetus Guard 2930 | -5/Cetus | Destroyed Cetus Guard 2958 | -5/Cetus | Lost 8 parts (5n2u1w) 2991 | -5/Cetus | Started Cetus Manufacturing Module 3016 | -5/Cetus | Manufactured an Enhanced Grunt 3041 | -5/Cetus | Manufactured an Enhanced Grunt 3049 | -5/Cetus | Discovered new exit (range 22) 3066 | -5/Cetus | Manufactured an Enhanced Grunt 3091 | -5/Cetus | Manufactured an Enhanced Grunt 3092 | -5/Cetus | Spotted Cetus Guard 3093 | -5/Cetus | Spotted Cetus Guard 3094 | -5/Cetus | Spotted Cetus Guard 3094 | -5/Cetus | Spotted Cetus Guard 3103 | -5/Cetus | Discovered new exit (range 22) 3116 | -5/Cetus | Manufactured an Enhanced Grunt 3121 | -5/Cetus | Core integrity fell below 20% 3121 | -5/Cetus | Destroyed Cetus Guard 3125 | -5/Cetus | Destroyed Cetus Guard 3128 | -5/Cetus | Destroyed Cetus Guard 3132 | -5/Cetus | Allies destroyed Cetus Guard 3135 | -5/Cetus | Met Revision 17 3145 | -5/Cetus | Lost 3 allies 3173 | -5/Cetus | Lost 4 parts (3n1u) 3178 | -5/Cetus | Found Prototype Protection 3178 | -5/Cetus | Identified Med. Regenerative Plating 3315 | -5/Cetus | Entered Archives 3315 | -5/Archives | Accompanied by 5 allies 3401 | -5/Archives | Discovered new exit (range 15) 3422 | -5/Archives | Discovered new exit (range 16) 3433 | -5/Archives | Unable to access archive contents 3454 | -5/Archives | Discovered new exit (range 15) 3535 | -5/Archives | Entered Factory 3535 | -4/Factory | Accompanied by 5 allies 3535 | -4/Factory | Evolved 2 slots: Weapon x2 3738 | -4/Factory | Garrison activated, responded to threat 3785 | -4/Factory | First assault squad dispatched 3930 | -4/Factory | Central database locked down 3989 | -4/Factory | Lost 4 allies 4025 | -4/Factory | Discovered new exit (range 12) 4028 | -4/Factory | Lost 5 parts (1p2u2w) 4031 | -4/Factory | Entered Upper Caves 4094 | -4/Upper Caves | Learned location of Quarantine (-2) 4102 | -4/Upper Caves | Entered a destroyed Warlord outpost 4189 | -4/Upper Caves | Discovered new exit (range 7) 4192 | -4/Upper Caves | Entered another Upper Caves area 4201 | -4/Upper Caves | Learned location of Armory (-4) 4202 | -4/Upper Caves | Discovered new exit (range 14) 4247 | -4/Upper Caves | Learned location of 1 exit from Proximity Caves 4291 | -4/Upper Caves | Build established: Scavenger-Mutant 4321 | -4/Upper Caves | Discovered new exit (range 11) 4394 | -4/Upper Caves | Entered Warlord 4433 | -4/Warlord | System corruption cleaned by Quarantine Array 4591 | -4/Warlord | Met Warlord 4616 | -4/Warlord | Warlord's base attacked by MAIN.C 4646 | -4/Warlord | Build established: Derelict-Tank 4966 | -4/Warlord | Warlord forces counterattacked 5037 | -4/Warlord | Spotted Executioner 5141 | -4/Warlord | Lost 12 allies 5291 | -4/Warlord | Warlord base infiltrated, sounded retreat 5390 | -4/Warlord | Spotted Striker 5413 | -4/Warlord | Discovered new exit (range 15) 5427 | -4/Warlord | Entered Proximity Caves 5428 | -3/Proximity Caves | Identified exit to Research 5521 | -3/Proximity Caves | Build established: Scavenger-Gladiator 5765 | -3/Proximity Caves | Entered Research 5765 | -3/Research | Evolved 2 slots: Utility x2 5965 | -3/Research | Revision forces began assault on 0b10 6028 | -3/Research | Met up with Revision 17++ 6465 | -3/Research | Research terminal network offline 6597 | -3/Research | Lost 5 allies 6629 | -3/Research | Discovered new exit (range 7) 6641 | -3/Research | Found Prototype Processor 6641 | -3/Research | Identified Exp. Signal Interpreter 6673 | -3/Research | Spotted Striker 6689 | -3/Research | Destroyed Striker 6721 | -3/Research | Identified exit to Research 6801 | -3/Research | Discovered new exit (range 13) 6818 | -3/Research | Identified exit to Testing 6898 | -3/Research | Found Prototype Device 6898 | -3/Research | Identified Exp. ECM Suite 6904 | -3/Research | Found Prototype Processor 6904 | -3/Research | Identified Exp. Terrain Scan Processor 6997 | -3/Research | Spotted Striker 7109 | -3/Research | Entered Testing 7392 | -3/Testing | Spotted Striker 7393 | -3/Testing | Spotted Striker 7420 | -3/Testing | Spotted Alpha 7 7433 | -3/Testing | Destroyed Striker 7454 | -3/Testing | System corruption reached 10% 7498 | -3/Testing | Destroyed Alpha 7 7523 | -3/Testing | Lost 13 parts (1p6n6u) 7578 | -3/Testing | Core integrity fell below 50% 7632 | -3/Testing | Stole the SGEMP Prototype 7825 | -3/Testing | Found Prototype Energy Gun 7825 | -3/Testing | Identified Warp Gun 7954 | -3/Testing | Found Prototype Protection 7954 | -3/Testing | Identified Centrium Heavy Armor Plating 8157 | -3/Testing | Repaired Centrium Medium Armor Plating 8609 | -3/Testing | First assault squad dispatched 8621 | -3/Testing | Scanned by Researcher 8642 | -3/Testing | Found Prototype Ballistic Cannon 8642 | -3/Testing | Identified Omega Cannon 8683 | -3/Testing | Found Prototype Launcher 8683 | -3/Testing | Identified Z-bomb Delivery System 8786 | -3/Testing | Discovered exit to Research (range 9) 8969 | -3/Testing | Lost 3 parts (3u) 9040 | -3/Testing | Found Prototype Processor 9040 | -3/Testing | Identified Exp. Target Analyzer 9080 | -3/Testing | Found Prototype Hackware 9080 | -3/Testing | Identified Ghost Barrier 9234 | -3/Testing | Entered Research 9234 | -2/Research | Warlord forces began assault on 0b10 9234 | -2/Research | Evolved 2 slots: Utility x1, Weapon x1 9315 | -2/Research | Spotted B-90 Cyclops 9344 | -2/Research | Research machine network offline 9414 | -2/Research | Destroyed B-90 Cyclops 9477 | -2/Research | Discovered new exit (range 15) 9493 | -2/Research | Identified exit to Quarantine 9525 | -2/Research | Found Prototype Device 9525 | -2/Research | Identified Exp. Thermal Defense Suite 9642 | -2/Research | Warlord destroyed during the assault 9671 | -2/Research | Spotted Executioner 9674 | -2/Research | Spotted Executioner 9679 | -2/Research | Borebot progress halted 9703 | -2/Research | Destroyed Executioner 9753 | -2/Research | Found Prototype Processor 9753 | -2/Research | Identified Exp. Core Analyzer 9757 | -2/Research | Found Prototype Device 9757 | -2/Research | Identified Adv. Kinecellerator 9768 | -2/Research | Found Prototype Processor 9768 | -2/Research | Identified Exp. Targeting Computer 9774 | -2/Research | Found Exp. Core Analyzer 9782 | -2/Research | Found Exp. Core Analyzer 9801 | -2/Research | Borebot progress halted 9929 | -2/Research | Borebot progress halted 10211 | -2/Research | Found Prototype Device 10211 | -2/Research | Identified Exp. Focal Shield 10305 | -2/Research | Spotted Striker 10312 | -2/Research | Destroyed Striker 10362 | -2/Research | Lost 3 parts (2u1w) 10474 | -2/Research | Entered Quarantine 10483 | -2/Quarantine | P-80 Master assimilated allied N7-TOH(d) 10505 | -2/Quarantine | Central database locked down 10841 | -2/Quarantine | Repaired Nanoactuators 10907 | -2/Quarantine | Found Alien Artifact 10907 | -2/Quarantine | Identified Phase Armor 11129 | -2/Quarantine | Found Alien Artifact 11307 | -2/Quarantine | Destroyed 10 combat bots 11360 | -2/Quarantine | Found Alien Impact Weapon 11360 | -2/Quarantine | Identified Core Stripper 11396 | -2/Quarantine | Found Hvy. Insulated Plating 11412 | -2/Quarantine | Found Exp. Signal Interpreter 11576 | -2/Quarantine | Found Alien Slashing Weapon 11576 | -2/Quarantine | Identified Sigix Broadsword 11578 | -2/Quarantine | Discovered new exit (range 8) 11586 | -2/Quarantine | Identified Subatomic Replicator 11586 | -2/Quarantine | Used Subatomic Replicator to replicate Sigix Broadsword 11724 | -2/Quarantine | First assault squad dispatched 11923 | -2/Quarantine | Spotted Fortress 11933 | -2/Quarantine | Found Alien Artifact 12097 | -2/Quarantine | Lost 4 parts (1p3u) 12149 | -2/Quarantine | Discovered new exit (range 6) 12149 | -2/Quarantine | Discovered new exit (range 6) 12156 | -2/Quarantine | Identified exit to Protoforge 12160 | -2/Quarantine | Identified exit to Section 7 12165 | -2/Quarantine | Entered Protoforge 12208 | -2/Protoforge | Superfortress began startup sequence 12428 | -2/Protoforge | Forge Plexus network access discovered 12463 | -2/Protoforge | Spotted Decapitator 12463 | -2/Protoforge | Spotted Decapitator 12463 | -2/Protoforge | Spotted Decapitator 12463 | -2/Protoforge | Spotted Decapitator 12464 | -2/Protoforge | Spotted Decapitator 12465 | -2/Protoforge | Destroyed Decapitator 12465 | -2/Protoforge | Destroyed Decapitator 12465 | -2/Protoforge | Destroyed Decapitator 12465 | -2/Protoforge | Destroyed Decapitator 12589 | -2/Protoforge | Spotted Hotshot 12691 | -2/Protoforge | Core integrity fell below 50% 12727 | -2/Protoforge | Spotted Hotshot 12728 | -2/Protoforge | Spotted Hotshot 12902 | -2/Protoforge | Destroyed Decapitator 12914 | -2/Protoforge | Found Exp. Terror Saw 13089 | -2/Protoforge | Spotted Hotshot 13089 | -2/Protoforge | Spotted Hotshot 13167 | -2/Protoforge | Destroyed Hotshot 13173 | -2/Protoforge | Destroyed Hotshot 13175 | -2/Protoforge | Spotted Hotshot 13180 | -2/Protoforge | Destroyed Hotshot 13182 | -2/Protoforge | Spotted Hotshot 13184 | -2/Protoforge | Spotted Hotshot 13186 | -2/Protoforge | Destroyed Hotshot 13201 | -2/Protoforge | Destroyed Hotshot 13222 | -2/Protoforge | Destroyed 8 combat bots 13224 | -2/Protoforge | Spotted Overlord 13305 | -2/Protoforge | System corruption reached 10% 13310 | -2/Protoforge | Core integrity fell below 20% 13358 | -2/Protoforge | Destroyed by S-43 Plague with Heavy Machine Gun Last Messages --------------- 13309_ Lgt. Quantum Reactor destroyed. 13309_ Critical hit (Blast). 13309_ Dropped Hcp. Storage Unit. 13311_ Dropped Adv. Dynamic Insulation System. 13311_ Dropped Nanosword. 13311_ P-80 Master resets X-87 Electro, system corruption cleaned. 13312_ Dropped Nanosword. 13312_ Slug penetrates P-80 Master. 13312_ Slug penetrates Wall. 13313_ The unstable cave ceiling collapses. 13313_ Adv. Target Analyzer destroyed. 13324_ System corrupted: Matter fused (-10). 13339_ /9Q SVRGU6SASTNYP 8BZRBMC&OF 13341_ Sigix Broadsword destroyed. 13356_ O-16 Technician: "IFF HANDSHAKE FAILED. SECURING TERMINAL." 13358_ System corrupted: Hvy. Armored Exoskeleton rejected. 13358_ Acquired Hvy. Armored Exoskeleton. Map ----- +----------------------------------------------------+ | ???????????????????????????????????????????????? | | ???????????????????????????????????????????????? | | ???????????????????????????????????????????????? | | ???????????????????????????????????????????????? | | ???????????????????????????????????????????????? | | ???????????????????????????????????????????????? | | ???????????????????????????????????????????????? | | ???????????????????????????????????????????????? | | ???????????????????????????????????????????????? | | ???????????????????????????????????????????????? | | ???????????????????????????????????????????????? | | ???????????????????????????????????????????????? | | ???????????????????????????????????????????????? | | ???????????????????????????????????????????????? | | ???????????????????????????????????????????????? | | ???????????????????????????????????????????????? | | ???????????????????????????????????????????????? | | ???????????????????????????????????????????????? | | ????????????????????????????######+????????????? | | ???????????????????????????? ?????????????? | | ??????????????????????????? ??????????????? | | ??????????????????????????? ????????????????? | | ??????????????????????????? ?????????????????? | | ??????????????????????#####+#####??????????????? | | ??????????????????????# #??????????????? | | ??????????????????????#@""" #??????????????? | | ??????????????????????# """ #??????????????? | | ???????????????#??????# """o #??????????????? | | ???????????????# ????# ""#??????????????? | | ???????????????# ??# T"#??????????????? | | ???????????????+ #s ""#??????????????? | | ???????????????# /s #??????????????? | | ???????????????# ##s########??????????????? | | ???????????????# ???#s#?????????????????????? | | ???????????????### ???# #?????????????????????? | | ?????????????????# ???#s#?????????????????????? | | ?????????????????# ???# ########??????????????? | | ?????????????????# ???# # #??????????????? | | ????????????###### ####^# """" #??????????????? | | ????????????# + """" #??????????????? | | ????????????# # """" #??????????????? | | ????????????# """ + """" #??????????????? | | ????????????# """ # #??????????????? | | ????????????# R" #############+##??????? | | ??????# ##### """ #??????? | | ??????+ "" #??????? | | ??????# """ """ """ / ?? | | ??????# """ """ """ ????????? | | ??????########"""T"""# """ """ """ #??????? | | ?????????????######### #??????? | +----------------------------------------------------+ Best States ------------- Heat Dissipation 84 Energy Generation 29 Energy Capacity 850 Matter Stores 300 Matter Capacity 600 Sight Range 23 Terrain Scan Density 10 EM Shielding 4 Corruption Block 20 Armor Coverage 1200 Resistance: KI 10 Resistance: TH 15 Resistance: EM 30 Core Shielding 30 Melee Speed Boost 30 Phase Shifting 15 Evasion (%) 79 Melee Accuracy 37 Target Analysis 14 Core Analysis 12 Armor Integrity Analysis 40 Recoil Reduction 6 Defensive Hacking 20 Item Schematics ----------------- Cld. Impulse Thruster | -3/Testing | Archive Lgt. Antimatter Cannon | -3/Testing | Archive Cld. Phase Cannon | -3/Testing | Archive Hvy. Dispersion Rifle | -3/Testing | Archive Prc. Matter Filter | -2/Quarantine | Archive Imp. Energy Well | -2/Quarantine | Archive Adv. KE Penetrator | -2/Quarantine | Archive Exp. Matter Compressor | -2/Quarantine | Archive Exp. EM Disruption Field | -2/Quarantine | Archive Mni. Smartbomb Launcher | -2/Quarantine | Archive Adv. Energy Well | -2/Quarantine | Archive Hvy. Wave Gun | -2/Quarantine | Archive Exp. Power Amplifier | -2/Quarantine | Archive Robot Schematics ------------------ H-77 Assassin | -3/Testing | Archive K-01 Serf | -3/Testing | Archive R-06 Scavenger | -3/Testing | Archive R-10 Processor | -3/Testing | Archive Y-72 Warden | -2/Quarantine | Archive T-07 Excavator | -2/Quarantine | Archive Fabricated ------------ Nothing Repaired ---------- Centrium Medium Armor Plating | 17% | -3/Testing Nanoactuators | 17% | -2/Quarantine Studied --------- Flexi-carbon Leg | -4/Factory | Hacked Hvy. Pick | -4/Factory | Hacked Myomer Leg | -4/Factory | Hacked Spear | -4/Factory | Hacked Centrium Wheel | -4/Factory | Hacked Hvy. Shield Leg | -2/Quarantine | Hacked Alien Tech Used ----------------- Phase Armor Core Stripper Sigix Broadsword Subatomic Replicator Achievements -------------- Ew, Corruption IP Theft Inventory(Loot) Melee Specialist Plot Armor Sprinter Super-what Now? Tailor-made Thread The Needle Around The Corner Challenges ------------ None Game ------ Seed SchematicTransportNetwork Manual? 0 Play Time 02:23:39 Cumulative 345.2 hours Start 2025.10.31 @ 06:35:10 End 2025.10.31 @ 09:11:50 Sessions 1 Manual Loads 0 Difficulty Rogue Special Mode None Game No. 302 Rogue 302 Adventurer 0 Explorer 0 Win Type - Total 2 Types 1/1/0/0/0/0/0/0/0/0 Lore% 82 Gallery% 81 Achievement% 56 Wizard Run 0 Options --------- Layout 1 ASCII 0 Keyboard 0 Movement Numpad Keybinds 0 Fullscreen 1 Font 24/Smallcaps Map View 50x35 Zoom Use 0% Tactical HUD 1 Map Filters NONE Filters NONE Steam 1 RUN: 9eb175fd-cd87-4e8e-ba44-cdc78c7424f2